bitfinex-derivatives/quotes_ETHF0:USTF0_20240927
["timestamp","ask_amount","ask_price","bid_price","bid_amount"]
[1727413684705,0.37762,2647.7,2647.6,4.9986397]
[1727413685007,0.37762,2647.7,2647.6,6.48376573]
[1727413685208,0.37762,2647.7,2647.6,4.9986397]
[1727413685810,0.37762,2647.7,2647.6,5.98944187]
[1727413686005,0.37762,2647.7,2647.6,6.48376573]
[1727413686209,0.37762,2647.7,2647.6,4.9986397]
[1727413686413,0.37762,2647.7,2647.6,5.98937766]
[1727413686605,0.37762,2647.8,2647.6,5.98937766]
[1727413686806,0.37762,2647.8,2647.6,4.19853796]
[1727413687608,0.37762,2647.8,2647.7,3.27561484]
[1727413688213,0.37762,2647.8,2647.7,3.27559629]
[1727413688907,0.37762,2647.8,2647.7,3.65109629]
[1727413689114,0.3776,2647.9,2647.7,3.65109629]
[1727413689315,0.3776,2647.9,2647.8,2.7810475]
[1727413690213,0.3776,2647.9,2647.8,3.1628475]
[1727413691512,0.3776,2647.9,2647.8,1.37237724]
[1727413693404,0.3776,2647.9,2647.8,3.16224134]
[1727413693711,0.37759,2648.0,2647.8,3.65679013]
[1727413693915,4.078,2648.4,2647.9,1.39059032]
[1727413694113,0.37755,2648.2,2648.0,0.99029032]
[1727413694312,1.9766,2648.5,2648.0,0.99029032]
[1727413694313,0.37755,2648.3,2648.0,0.99029032]
[1727413694513,0.37755,2648.3,2648.1,0.372]
[1727413694719,0.37755,2648.3,2648.2,0.3907]
[1727413730152,0.37755,2648.3,2648.2,1.38099032]
[1727413730351,0.37755,2648.3,2648.2,0.3907]
[1727413730554,0.37755,2648.3,2648.2,1.38099032]
[1727413730756,0.37755,2648.3,2648.2,0.3907]
[1727413732357,0.37755,2648.3,2648.2,1.38099032]
[1727413732657,0.3867,2648.5,2648.2,1.38117541]
[1727413732857,3.2078,2648.7,2648.4,0.99047541]
[1727413733162,0.3775,2648.6,2648.5,0.405]
[1727413740659,0.3775,2648.6,2648.5,3.6128]
[1727413747666,0.3775,2648.6,2648.5,0.405]
[1727413748268,0.3885,2648.7,2648.5,0.405]
[1727413748470,0.3885,2648.7,2648.6,0.3733]
[1727413748471,0.76598,2648.7,2648.6,0.3733]
[1727413755369,3.614,2649.1,2648.6,0.3733]
[1727413755666,0.37743,2649.1,2648.9,3.2078]
[1727413755866,0.37743,2649.1,2649.0,0.7782]
[1727413756269,0.3881,2649.3,2649.0,0.7782]
[1727413756470,0.37741,2649.2,2649.1,0.4089]
[1727413760470,4.88213524,2649.4,2649.1,0.4089]
[1727413760671,4.078,2649.9,2649.2,3.2078]
[1727413760977,0.77753,2649.8,2649.5,3.2078]
[1727413761177,0.77753,2649.8,2649.6,1.1676]
[1727413761477,0.37734,2649.7,2649.6,1.1676]
[1727413762974,0.77753,2649.8,2649.6,1.1676]
[1727413763375,0.37734,2649.7,2649.6,1.1676]
[1727413764580,0.77753,2649.8,2649.6,1.1676]
[1727413764878,0.37733,2649.8,2649.6,1.1676]
[1727413768074,0.37734,2649.7,2649.6,1.1676]
[1727413768277,0.37733,2649.8,2649.6,1.1676]
[1727413768583,0.4009,2650.0,2649.6,1.1676]
[1727413768975,0.37733,2649.8,2649.6,1.1676]
[1727413770183,0.4009,2650.0,2649.6,1.1676]
[1727413770382,0.37733,2649.8,2649.6,1.1676]
[1727413770775,0.37732,2649.9,2649.6,1.1676]
[1727413770978,0.37731,2650.0,2649.7,3.2078]
[1727413771279,0.3773,2650.0,2649.7,3.2078]
[1727413771879,0.37731,2649.9,2649.7,3.2078]
[1727413772882,0.3773,2650.0,2649.7,3.2078]
[1727413773577,0.4012,2650.2,2649.7,3.2078]
[1727413773578,0.37732,2649.9,2649.7,3.2078]
[1727413774882,0.3773,2650.0,2649.7,3.2078]
[1727413775076,0.37731,2649.9,2649.7,3.2078]
[1727413775277,0.3773,2650.0,2649.7,3.58514]
[1727413775473,0.3773,2650.0,2649.7,3.2078]
[1727413777582,0.3773,2650.0,2649.7,3.58514]
[1727413777778,0.3773,2650.0,2649.7,3.2078]
[1727413778179,0.3914,2650.4,2649.8,3.7736]
[1727413778383,0.3914,2650.4,2650.1,3.2078]
[1727413778384,0.94311,2650.4,2650.1,3.2078]
[1727413778581,0.37727,2650.2,2650.1,3.2078]
[1727413786090,0.37726,2650.3,2650.1,3.2078]
[1727413786294,0.37726,2650.3,2650.2,0.3832]
[1727413794595,0.37727,2650.2,2650.1,3.2078]
[1727413794791,0.78707,2650.2,2650.1,3.2078]
[1727413795486,0.78707,2650.2,2650.0,0.7654]
[1727413795696,0.78707,2650.2,2650.1,3.2078]
[1727413797299,0.4098,2650.2,2650.1,3.5849]
[1727413797893,0.78707,2650.2,2650.1,3.5849]
[1727413798299,0.4098,2650.2,2650.1,3.5849]
[1727413799498,0.78707,2650.2,2650.1,3.5849]
[1727413800101,0.78707,2650.2,2650.1,0.3771]
[1727413800303,0.78707,2650.2,2650.1,3.5849]
[1727413801201,0.78707,2650.2,2650.1,3.2078]
[1727413801401,0.78707,2650.2,2649.7,0.37733]
[1727413801402,4.1834,2650.2,2649.7,0.37733]
[1727413801598,0.4098,2650.2,2650.0,3.2078]
[1727413801801,0.37726,2650.3,2650.1,0.7591]
[1727413801995,0.37726,2650.3,2650.1,1.1681]
[1727413802502,0.37727,2650.2,2650.1,1.1681]
[1727413806812,0.3779,2650.4,2650.1,1.1681]
[1727413806813,0.37726,2650.3,2650.1,1.1681]
[1727413807307,0.37727,2650.2,2650.1,1.1681]
[1727413810406,3.7736,2650.2,2649.7,3.2078]
[1727413810609,1.32102,2650.4,2649.8,0.3969]
[1727413810610,0.3773,2650.0,2649.8,0.3969]
[1727413811703,0.37731,2649.9,2649.8,0.3969]
[1727413812309,0.37731,2650.0,2649.8,0.3969]
[1727413812509,0.37731,2649.9,2649.8,0.3969]
[1727413814706,0.37731,2650.0,2649.8,3.65029533]
[1727413814906,0.37731,2650.0,2649.9,0.98878685]
[1727413815101,0.3822,2650.3,2649.9,2.75638898]
[1727413815301,0.37729,2650.1,2650.0,4.57168685]
[1727413815511,0.37729,2650.1,2650.0,6.33943927]
[1727413815711,0.3822,2650.3,2650.0,6.83636553]
[1727413815914,0.37727,2650.2,2650.1,1.36959013]
[1727413822708,0.37727,2650.2,2650.1,0.3808]
[1727413823714,0.37726,2650.3,2650.1,0.3808]
[1727413824015,0.37726,2650.3,2650.2,0.3804]
[1727413824610,0.37724,2650.5,2650.2,0.3804]
[1727413824811,0.3964,2650.6,2650.3,3.2078]
[1727413825114,0.3964,2650.6,2650.3,3.5812]
[1727413825115,0.37723,2650.5,2650.3,3.5812]
[1727413826211,0.37724,2650.4,2650.3,3.5812]
[1727413826906,0.37723,2650.5,2650.3,3.5812]
[1727413827310,0.37724,2650.4,2650.3,3.5812]
[1727413827519,0.37724,2650.4,2650.3,0.3734]
[1727413831726,0.37724,2650.4,2650.3,1.36219013]
[1727413832021,0.37724,2650.4,2650.3,0.3734]
[1727413832816,0.37724,2650.4,2650.3,1.36219013]
[1727413833020,0.37724,2650.4,2650.3,0.3734]
[1727413833221,0.37724,2650.4,2650.3,1.36219013]
[1727413834025,0.37724,2650.4,2650.3,0.3734]
[1727413836432,0.37724,2650.4,2650.3,4.56999013]
[1727413836627,0.37724,2650.4,2650.3,3.5812]
[1727413836832,0.37724,2650.4,2650.3,0.3734]
[1727413837027,0.37724,2650.4,2650.3,4.56999013]
[1727413837229,0.3964,2650.6,2650.3,1.36219013]
[1727413837230,0.37723,2650.5,2650.3,1.36219013]
[1727413837432,0.37723,2650.5,2650.3,4.56999013]
[1727413837937,0.37724,2650.4,2650.3,4.56999013]
[1727413838832,0.37724,2650.4,2650.3,3.5812]
[1727413839231,0.37724,2650.4,2650.3,4.56999013]
[1727413839636,0.37724,2650.4,2650.3,3.5812]
[1727413839836,0.37724,2650.4,2650.3,4.56999013]
[1727413840136,0.37724,2650.4,2650.3,3.5812]
[1727413840437,0.37724,2650.4,2650.3,0.3734]
[1727413843243,0.37724,2650.4,2650.3,1.36219013]
[1727413844335,0.37724,2650.4,2650.3,0.3734]
[1727413845637,0.37724,2650.5,2650.3,0.3734]
[1727413846041,0.37724,2650.4,2650.3,0.3734]
[1727413847738,0.3736,2650.9,2650.3,3.5812]
[1727413847943,0.4081,2650.9,2650.6,3.2078]
[1727413848239,0.37718,2650.8,2650.7,1.1533]
[1727413850245,0.94283,2651.2,2650.7,4.9261]
[1727413850433,0.37718,2650.9,2650.7,1.1533]
[1727413851048,0.37718,2650.9,2650.8,3.7728]
[1727413851436,0.3973,2651.3,2650.7,1.1533]
[1727413851638,0.37718,2650.9,2650.7,1.1533]
[1727413852537,0.37718,2650.8,2650.7,1.1533]
[1727413854838,0.37718,2650.8,2650.7,0.3757]
[1727413855140,0.3772,2650.7,2650.6,3.2078]
[1727413855347,1.1606,2650.7,2650.6,3.2078]
[1727413859450,0.37723,2650.5,2650.3,1.37599013]
[1727413859642,0.37723,2650.5,2650.4,3.2078]
[1727413862647,0.37723,2650.5,2650.3,0.3872]
[1727413862845,0.37723,2650.5,2650.4,3.2078]
[1727413863244,0.37723,2650.5,2650.3,0.3872]
[1727413863450,0.94293,2650.9,2650.4,3.2078]
[1727413863845,0.3772,2650.7,2650.4,3.2078]
[1727413864044,0.3772,2650.8,2650.4,3.58503]
[1727413864252,0.37718,2650.9,2650.5,0.37722]
[1727413864443,0.37718,2650.9,2650.7,3.2078]
[1727413864651,0.37718,2650.9,2650.8,0.402]
[1727413865746,0.77456,2651.0,2650.8,0.402]
[1727413867956,0.7445,2651.4,2650.8,0.402]
[1727413868154,0.37716,2651.0,2650.8,0.402]
[1727413869768,0.37715,2651.1,2650.8,0.402]
[1727413869968,0.37716,2651.0,2650.8,0.402]
[1727413870967,0.37717,2650.9,2650.8,0.402]
[1727413871270,0.37716,2651.0,2650.8,0.402]
[1727413871566,0.37714,2651.1,2650.8,0.402]
[1727413872367,0.37716,2651.0,2650.8,0.402]
[1727413873173,0.3941,2651.3,2650.8,0.402]
[1727413873365,0.37715,2651.1,2650.8,0.402]
[1727413873760,0.37716,2651.0,2650.8,0.402]
[1727413875669,0.37715,2651.1,2650.8,0.402]
[1727413876170,0.37715,2651.1,2651.0,3.2078]
[1727413876869,0.3941,2651.3,2650.8,0.402]
[1727413876870,0.37716,2651.0,2650.8,0.402]
[1727413877475,0.37715,2651.1,2650.8,0.402]
[1727413877678,0.37715,2651.1,2651.0,3.2078]
[1727413878371,0.37716,2651.0,2650.9,3.2078]
[1727413878675,0.37715,2651.1,2650.9,3.2078]
[1727413878874,0.37715,2651.1,2651.0,0.4063]
[1727413879483,0.3941,2651.3,2651.0,0.4063]
[1727413879484,0.77122,2651.3,2651.0,0.4063]
[1727413879675,0.37711,2651.4,2651.0,0.78345]
[1727413880173,0.3776,2651.6,2651.2,3.2078]
[1727413880369,0.3776,2651.6,2651.3,0.3697]
[1727413880370,0.3771,2651.4,2651.3,0.3697]
[1727413883269,0.37709,2651.5,2651.3,0.3697]
[1727413883569,0.3771,2651.4,2651.3,0.3697]
[1727413883773,0.37709,2651.5,2651.3,0.3697]
[1727413884272,0.3771,2651.4,2651.3,0.3697]
[1727413885575,0.3915,2651.9,2651.3,4.1417]
[1727413885880,1.73291,2652.1,2651.6,3.2078]
[1727413885881,0.37705,2651.7,2651.6,3.2078]
[1727413886079,0.37705,2651.8,2651.6,3.2078]
[1727413886275,0.37705,2651.8,2651.7,0.3753]
[1727413887075,0.37709,2651.5,2651.4,3.2078]
[1727413887273,0.3771,2651.4,2651.3,0.3929]
[1727413893173,1.2024,2651.6,2651.3,0.3929]
[1727413893372,0.3771,2651.4,2651.3,0.3929]
[1727413893878,0.37706,2651.7,2651.3,10.542]
[1727413894081,0.37704,2651.8,2651.6,3.2078]
[1727413894583,0.37704,2651.8,2651.7,0.3811]
[1727413895175,0.4039,2652.1,2651.7,0.3811]
[1727413895371,0.4039,2652.1,2651.9,3.2078]
[1727413895973,0.78091,2652.1,2651.9,3.2078]
[1727413896182,4.1501,2652.7,2651.9,3.2078]
[1727413896483,0.37699,2652.2,2651.9,3.2078]
[1727413897074,0.377,2652.1,2651.9,3.2078]
[1727413897479,0.37699,2652.2,2651.9,3.2078]
[1727413899070,0.37699,2652.2,2652.0,0.4047]
[1727413899275,0.4039,2652.4,2652.1,0.3931]
[1727413899676,0.37697,2652.3,2652.1,0.3931]
[1727413899878,0.37698,2652.2,2652.1,0.3931]
[1727413900280,0.37697,2652.3,2652.1,0.3931]
[1727413900681,0.37697,2652.3,2652.2,3.2078]
[1727413905282,0.7995,2652.6,2652.2,3.2078]
[1727413905490,0.37694,2652.5,2652.2,3.2078]
[1727413905782,0.3894,2652.6,2652.2,3.2078]
[1727413905975,1.72213,2652.9,2652.2,3.58478]
[1727413905976,0.41,2652.9,2652.2,3.58478]
[1727413906174,0.41,2652.9,2652.1,0.7905]
[1727413906175,0.37698,2652.2,2652.1,3.2078]
[1727413906379,0.94222,2652.9,2652.1,3.5895]
[1727413906380,0.7742,2652.8,2652.1,3.5895]
[1727413906577,0.4043,2652.8,2652.5,3.2078]
[1727413906780,3.5905,2653.0,2652.6,1.1647]
[1727413906982,0.37693,2652.6,2652.5,3.2078]
[1727413907186,0.37701,2652.0,2651.9,0.352]
[1727413907483,0.37704,2651.8,2651.7,3.0288]
[1727413907794,0.37704,2651.8,2651.4,0.98879013]
[1727413907795,0.37708,2651.5,2651.4,3.2078]
[1727413908084,0.94261,2651.8,2650.7,4.54859013]
[1727413908085,0.94269,2651.6,2650.7,4.54859013]
[1727413908386,0.37713,2651.2,2650.7,3.2078]
[1727413908583,0.37714,2651.2,2650.7,3.2078]
[1727413908779,3.31535458,2651.8,2650.7,3.5857]
[1727413908983,3.2078,2651.7,2651.0,3.2078]
[1727413909186,0.37711,2651.4,2651.0,3.2078]
[1727413909379,3.2078,2651.7,2651.0,3.2078]
[1727413909587,0.37711,2651.3,2651.0,3.2078]
[1727413910488,3.2078,2651.7,2651.0,3.2078]
[1727413910684,0.3771,2651.4,2651.0,3.2078]
[1727413910889,0.37712,2651.3,2651.0,3.2078]
[1727413911679,3.2078,2651.7,2651.0,3.2078]
[1727413911990,0.37706,2651.7,2651.3,3.2078]
[1727413912189,0.37706,2651.7,2651.4,0.4074]
[1727413912487,0.37705,2651.8,2651.4,0.4074]
[1727413912988,0.37703,2651.9,2651.6,3.2078]
[1727413913196,0.37704,2651.8,2651.7,0.3759]
[1727413913583,0.37703,2651.9,2651.7,0.3759]
[1727413913981,0.37704,2651.8,2651.7,0.3759]
[1727413914184,0.37703,2651.9,2651.7,0.3759]
[1727413914380,0.37704,2651.8,2651.7,0.3759]
[1727413915492,0.37703,2651.9,2651.7,0.3759]
[1727413915693,0.37704,2651.8,2651.7,0.3759]
[1727413921292,3.2078,2652.1,2651.7,0.3759]
[1727413921494,3.2078,2652.8,2652.0,0.377]
[1727413921688,3.2078,2652.8,2652.2,3.2078]
[1727413921989,0.37691,2652.7,2652.3,0.3839]
[1727413922497,0.3706,2653.1,2652.5,3.2078]
[1727413922801,0.37689,2652.9,2652.5,3.2078]
[1727413922986,1.13097855,2653.3,2652.5,3.2078]
[1727413923191,3.2078,2653.4,2652.9,3.2078]
[1727413923393,0.37686,2653.1,2653.0,0.4021]
[1727413925191,4.14646,2653.1,2653.0,0.4021]
[1727413925393,0.37691,2652.7,2652.5,3.2078]
[1727413925586,0.37691,2652.7,2652.5,3.6099]
[1727413926593,0.3706,2653.0,2652.5,3.6099]
[1727413926594,0.3769,2652.8,2652.5,3.6099]
[1727413926789,0.3706,2653.0,2652.5,3.6099]
[1727413926995,0.37691,2652.7,2652.5,3.6099]
[1727413927194,0.37693,2652.6,2652.5,3.6099]
[1727413928802,0.37697,2652.3,2652.2,3.2078]
[1727413932401,0.48061657,2652.9,2652.2,3.2078]
[1727413932402,0.94212,2653.2,2652.2,6.9782]
[1727413932604,0.37688,2653.0,2652.5,3.2078]
[1727413932798,0.37688,2653.0,2652.6,0.408]
[1727413933202,0.37686,2653.1,2652.6,0.78493]
[1727413933402,0.37688,2652.9,2652.6,0.408]
[1727413933901,0.37689,2652.9,2652.6,0.408]
[1727413934102,0.37688,2653.0,2652.6,0.408]
[1727413934306,0.37687,2653.1,2652.6,3.99272]
[1727413934910,0.37687,2653.1,2652.6,3.6158]
[1727413935298,0.37687,2653.1,2652.6,3.99273]
[1727413936009,0.77235,2653.2,2652.6,3.99273]
[1727413936307,0.37686,2653.1,2652.6,3.99273]
[1727413936507,0.37687,2653.0,2652.6,3.6158]
[1727413937712,0.37686,2653.1,2652.6,3.6158]
[1727413938009,0.37686,2653.1,2652.9,3.2078]
[1727413938205,0.4036,2653.4,2652.9,3.2078]
[1727413938608,0.37686,2653.1,2652.9,3.2078]
[1727413939206,0.37687,2653.0,2652.9,3.2078]
[1727413939405,0.37686,2653.1,2652.9,3.2078]
[1727413939914,0.37687,2653.0,2652.9,3.2078]
[1727413940406,4.14647,2653.0,2652.9,3.2078]
[1727413941510,1.34566,2653.4,2652.9,3.2078]
[1727413941707,0.4036,2653.4,2652.9,3.2078]
[1727413942105,0.37686,2653.1,2652.9,3.2078]
[1727413942716,0.37682,2653.4,2652.9,3.2078]
[1727413942908,0.37682,2653.4,2653.2,3.2078]
[1727413943108,0.37682,2653.4,2653.3,0.3821]
[1727413943612,0.37681,2653.5,2653.3,0.3821]
[1727413943809,0.37681,2653.4,2653.3,0.3821]
[1727413946810,0.37684,2653.3,2653.0,0.3896]
[1727413947117,5.40155,2653.7,2653.0,0.7902]
[1727413947807,0.37682,2653.4,2653.2,3.2078]
[1727413948008,0.37683,2653.3,2653.2,3.2078]
[1727413949513,0.37685,2653.2,2653.0,0.7902]
[1727413950911,0.37686,2653.1,2653.0,0.7902]
[1727413953521,0.94201,2653.5,2653.0,0.7902]
[1727413954019,0.37685,2653.2,2653.0,0.7902]
[1727413954220,0.94201,2653.5,2653.0,0.7902]
[1727413954418,0.37685,2653.2,2653.0,0.7902]
[1727413954624,0.37686,2653.1,2653.0,0.7902]
[1727413955323,0.37687,2653.0,2652.9,3.2078]
[1727413955620,0.37691,2652.7,2652.6,3.2078]
[1727413957523,12.9774,2652.7,2651.8,0.44]
[1727413957824,0.37703,2651.9,2651.6,3.9648]
[1727413958322,4.4028,2652.4,2651.6,3.9648]
[1727413958323,0.37702,2652.0,2651.6,3.9648]
[1727413958712,0.377,2652.1,2651.6,3.9648]
[1727413960618,0.37701,2652.0,2651.6,3.9648]
[1727413961717,0.76869,2652.2,2651.9,3.2078]
[1727413962619,0.3917,2652.2,2651.9,3.2078]
[1727413962820,0.37698,2652.2,2651.9,3.2078]
[1727413963018,4.4028,2652.4,2651.9,3.2078]
[1727413963019,0.37698,2652.3,2651.9,3.2078]
[1727413964015,0.37699,2652.2,2651.9,3.2078]
[1727413964221,0.377,2652.1,2651.9,3.2078]
[1727413964526,0.37699,2652.2,2651.9,3.2078]
[1727413965421,3.2078,2652.4,2651.9,3.2078]
[1727413965615,0.37697,2652.3,2651.9,3.2078]
[1727413966221,0.37699,2652.2,2651.9,3.2078]
[1727413969317,0.37698,2652.3,2651.9,3.2078]
[1727413969714,0.37699,2652.2,2651.9,3.2078]
[1727413970125,0.37701,2652.0,2651.9,3.2078]
[1727413974122,3.2078,2652.4,2651.9,3.2078]
[1727413974123,0.37701,2652.1,2651.9,3.2078]
[1727413974325,3.2078,2652.4,2651.9,3.2078]
[1727413974624,6.21626,2652.8,2652.2,3.2078]
[1727413974825,2.13826,2652.8,2652.2,3.2078]
[1727413975138,0.37696,2652.5,2652.3,0.763]
[1727413975437,0.3767,2652.7,2652.3,0.763]
[1727413975438,0.37691,2652.7,2652.3,0.763]
[1727413975631,0.77,2653.0,2652.5,3.2078]
[1727413975925,0.37692,2652.7,2652.5,3.2078]
[1727413976129,0.37693,2652.6,2652.5,3.2078]
[1727413976524,4.14653,2652.6,2652.5,3.2078]
[1727413976925,0.37696,2652.4,2652.3,0.763]
[1727413977128,0.37695,2652.5,2652.3,0.763]
[1727413977722,0.37696,2652.4,2652.3,0.763]
[1727413978920,3.2078,2652.8,2652.3,0.763]
[1727413978921,0.37695,2652.5,2652.3,0.763]
[1727413979228,0.37696,2652.4,2652.3,0.763]
[1727413979425,0.37695,2652.5,2652.3,0.763]
[1727413980227,0.37696,2652.4,2652.3,0.763]
[1727413985026,0.37696,2652.4,2652.3,0.3926]
[1727413985335,3.7704,2652.4,2652.0,3.5781]
[1727413985541,4.15013,2652.6,2652.0,3.5781]
[1727413985542,0.4073,2652.3,2652.0,3.5781]
[1727413986440,0.37699,2652.2,2652.0,3.5781]
[1727413986639,0.37699,2652.2,2652.1,0.4009]
[1727413994241,0.377,2652.1,2652.0,3.5781]
[1727413994943,0.4073,2652.3,2651.9,0.4028]
[1727413995647,0.377,2652.1,2651.9,0.4028]
[1727413999345,0.37699,2652.2,2651.9,0.4028]
[1727414002746,0.4073,2652.3,2651.9,0.4028]
[1727414002941,0.377,2652.2,2651.9,0.4028]
[1727414003550,0.377,2652.1,2651.9,0.4028]
[1727414004649,0.37699,2652.2,2651.9,0.4028]
[1727414009062,0.377,2652.1,2651.9,0.4028]
[1727414010561,0.37699,2652.2,2651.9,0.4028]
[1727414011063,0.37699,2652.2,2651.9,1.38479097]
[1727414011664,0.377,2652.1,2651.9,1.38479097]
[1727414012061,0.4073,2652.3,2651.8,1.86538645]
[1727414012062,0.37703,2651.9,2651.8,0.21270097]
[1727414012361,1.193,2651.9,2651.3,0.3806]
[1727414012557,0.37708,2651.6,2651.5,0.8034]
[1727414023873,0.37703,2652.0,2651.5,4.5746]
[1727414024173,0.4075,2652.2,2651.7,3.2078]
[1727414024372,0.37702,2652.0,2651.8,0.3919]
[1727414024574,0.37703,2651.9,2651.8,0.3919]
[1727414031182,0.37702,2652.0,2651.8,0.3919]
[1727414031880,0.37703,2651.9,2651.8,0.3919]
[1727414033376,0.3994,2652.1,2651.5,1.88038645]
[1727414033377,0.7827,2652.1,2651.5,1.88038645]
[1727414033573,0.7827,2652.1,2651.2,0.352]
[1727414033574,0.37711,2651.3,2651.2,1.47298645]
[1727414033774,3.6013,2651.8,2651.0,1.88048645]
[1727414033775,3.79379779,2651.8,2651.0,1.88048645]
[1727414033978,0.37714,2651.1,2651.0,0.4075]
[1727414040483,0.48498244,2651.2,2651.0,0.4075]
[1727414040777,0.37714,2651.1,2651.0,0.4075]
[1727414049485,0.37714,2651.1,2651.0,3.6153]
[1727414051488,0.37712,2651.3,2651.0,3.6153]
[1727414051894,0.37713,2651.2,2651.0,3.6153]
[1727414054095,0.37714,2651.1,2651.0,3.6153]
[1727414054297,0.37713,2651.2,2651.0,3.6153]
[1727414056297,0.37713,2651.2,2651.0,0.4075]
[1727414056500,0.37713,2651.2,2651.0,3.6153]
[1727414059399,0.37714,2651.1,2651.0,3.6153]
[1727414062302,0.37714,2651.1,2651.0,0.4075]
[1727414062604,0.37714,2651.1,2651.0,3.6153]
[1727414070509,0.50021115,2651.4,2651.0,3.6153]
[1727414070709,0.37714,2651.1,2651.0,3.6153]
[1727414071497,0.37714,2651.1,2651.0,0.4075]
[1727414071704,0.37715,2651.0,2650.9,0.7641]
[1727414072009,0.77875,2651.0,2650.9,0.7641]
[1727414072202,0.37718,2650.8,2650.7,3.2078]
[1727414072401,0.37718,2650.8,2650.7,0.8044]
[1727414072721,0.37718,2650.8,2650.7,4.0122]
[1727414072902,0.37724,2650.4,2650.2,4.68078645]
[1727414073110,0.37724,2650.4,2650.3,0.3739]
[1727414074602,0.41,2650.6,2650.3,0.3739]
[1727414074603,0.37723,2650.5,2650.3,0.3739]
[1727414075000,0.37724,2650.4,2650.3,0.3739]
[1727414075201,1.45991869,2650.6,2650.1,3.2078]
[1727414075410,0.37727,2650.2,2650.1,3.2078]
[1727414076700,0.37728,2650.1,2649.8,1.1565]
[1727414078809,0.3773,2650.0,2649.8,1.1565]
[1727414079007,0.37729,2650.1,2649.8,1.1565]
[1727414079207,0.3883,2650.5,2649.8,1.1565]
[1727414079408,0.37729,2650.1,2649.8,1.1565]
[1727414080316,0.49425034,2650.5,2649.8,1.1565]
[1727414080522,0.49425034,2650.5,2650.1,3.2078]
[1727414080523,0.37726,2650.3,2650.1,3.2078]
[1727414080815,1.596,2650.6,2650.2,0.3953]
[1727414081016,0.37725,2650.4,2650.3,0.812]
[1727414082419,0.37725,2650.4,2650.3,0.41]
[1727414084518,3.58505,2650.4,2650.3,0.41]
[1727414084719,0.37725,2650.4,2650.3,0.41]
[1727414090720,0.37725,2650.4,2650.2,0.3953]
[1727414090721,0.37725,2650.3,2650.2,0.3953]
[1727414100624,0.37725,2650.4,2650.2,0.3953]
[1727414100920,0.37725,2650.3,2650.2,0.3953]
[1727414101120,3.2078,2650.4,2650.0,0.3921]
[1727414101321,0.37728,2650.1,2650.0,0.3921]
[1727414106930,0.48190585,2650.1,2650.0,0.3921]
[1727414107131,4.25563585,2650.1,2649.4,3.5598]
[1727414107328,0.37735,2649.7,2649.5,1.1765]
[1727414107522,0.37735,2649.6,2649.5,1.1765]
[1727414108322,0.37735,2649.7,2649.5,1.1765]
[1727414108523,0.37735,2649.6,2649.5,1.1765]
[1727414110925,0.77425,2649.6,2649.5,0.7727]
[1727414112236,0.3969,2649.6,2649.2,0.3805]
[1727414112922,0.3774,2649.3,2649.2,0.3805]
[1727414115429,0.37743,2649.1,2649.0,0.7673]
[1727414117931,0.37744,2649.0,2648.9,0.3981]
[1727414118421,0.10387014,2649.1,2648.9,0.3981]
[1727414118623,0.4023,2649.2,2648.9,0.3981]
[1727414118839,0.4023,2649.2,2649.0,0.3806]
[1727414119333,0.37743,2649.1,2649.0,0.3806]
[1727414119835,3.7752,2649.1,2648.7,3.2078]
[1727414120139,0.37747,2648.8,2648.7,3.9837]
[1727414120526,0.37747,2648.8,2648.2,5.60398645]
[1727414120527,3.7752,2648.8,2648.2,3.2078]
[1727414120828,1.1537,2648.7,2648.2,3.616]
[1727414121031,0.37753,2648.4,2648.2,3.616]
[1727414121225,1.185,2648.6,2648.2,3.616]
[1727414121431,1.185,2648.6,2648.2,0.4082]
[1727414121626,0.37754,2648.3,2648.2,0.4082]
[1727414122833,3.2078,2648.5,2648.2,0.4082]
[1727414123036,0.37754,2648.4,2648.2,0.4082]
[1727414124328,1.5585,2648.7,2648.3,3.2078]
[1727414124729,0.37752,2648.5,2648.2,0.4082]
[1727414125830,3.2078,2648.6,2648.2,0.4082]
[1727414126035,0.37754,2648.3,2648.2,0.4082]
[1727414128635,0.48542437,2648.3,2648.2,0.4082]
[1727414153548,0.37762,2647.8,2647.5,3.5598]
[1727414153750,0.3729,2647.7,2647.5,4.3692]
[1727414154150,0.3729,2647.7,2647.5,8.146]
[1727414154550,0.3776,2647.9,2647.5,4.3692]
[1727414154747,0.37762,2647.8,2647.5,4.3692]
[1727414154952,0.37764,2647.6,2647.5,4.3692]
[1727414155353,0.37764,2647.6,2647.5,8.146]
[1727414156951,0.37764,2647.6,2647.5,4.3692]
[1727414163448,0.50137974,2647.7,2647.5,4.3692]
[1727414163449,0.48191974,2647.7,2647.5,4.3692]
[1727414163651,0.10427974,2647.7,2647.5,4.3692]
[1727414163850,0.37763,2647.7,2647.5,4.3692]
[1727414164247,0.37764,2647.6,2647.5,4.3692]
[1727414166250,0.37764,2647.6,2647.5,1.1614]
[1727414166764,0.9441,2647.6,2647.2,0.98193941]
[1727414167056,0.9441,2647.6,2647.1,0.3722]
[1727414167057,0.3777,2647.2,2647.1,0.3722]
[1727414167258,0.37772,2647.0,2646.9,0.8023]
[1727414171556,0.37772,2647.1,2646.9,0.8023]
[1727414171966,0.37772,2647.0,2646.9,0.8023]
[1727414174854,3.2078,2647.0,2646.4,0.352]
[1727414175167,0.94443,2646.7,2646.0,0.352]
[1727414175462,0.94443,2646.7,2646.1,1.1729]
[1727414175463,0.37784,2646.2,2646.1,1.1729]